Cogmind - Beta 15 @@@ ROGUE MODE // 2025.07.25 @ 01:15:15 Player: jumpy Result: Self-destructed Performance ------------- Evolutions (3) 1500 Regions Visited (8) 1600 Robots Destroyed (45) 225 Value Destroyed (1709) 1709 Prototype IDs (16) 320 Alien Tech Used (0) 0 Bonus (664) 664 TOTAL SCORE: 6018 Bonus ------- Follower Combat Kills 364 Met Data Miner 300 Cogmind --------- Core Integrity 700/700 Matter 255/300 Energy 500/500 System Corruption 0% Temperature Cool (0) Movement Treading (243) Ox1 Location -7/Data Miner Parts ------- > --- POWER (1) -------- F-cell Engine > --- PROPULSION (4) --- Light Treads Light Treads Armored Treads > --- UTILITY (5) ------ Improved Heat Sink High-capacity Storage Unit Improved Signal Interpreter Medium Armor Plating > --- WEAPON (3) ------- Power Maul Power Maul > --- INVENTORY (20) --- Reinforced Ion Engine Light Armor Plating Hacking Suite Beam Rifle Spread Laser Spread Laser Heavy Ion Cannon Heavy Ion Cannon Plasma Cutter Spear Spear Peak State ------------ > --- POWER ------------ F-cell Engine > --- PROPULSION ------- Light Treads Light Treads Armored Treads Medium Treads > --- UTILITY ---------- Improved Heat Sink Improved Heat Sink High-capacity Storage Unit Improved Signal Interpreter Medium Armor Plating > --- WEAPON ----------- Heavy Ion Cannon Heavy Ion Cannon Power Maul > --- INVENTORY -------- Reinforced Ion Engine Light Armor Plating Hacking Suite Beam Rifle Spread Laser Spread Laser Grenade Launcher Plasma Cutter Power Maul Spear Spear [Rating: 41] Favorites ----------- Power F-cell Engine Engine F-cell Engine Power Core Light Nuclear Core Propulsion Armored Treads Treads Armored Treads Leg Aluminum Leg Wheel Wheel Hover Unit Aerolev Unit Flight Unit Improved VTOL Module Utility Improved Heat Sink Device Improved Heat Sink Storage High-capacity Storage Unit Processor Improved Signal Interpreter Protection Medium Armor Plating Weapon Heavy Ion Cannon Energy Gun Beam Rifle Energy Cannon Heavy Ion Cannon Ballistic Gun Light Assault Rifle Launcher Grenade Launcher Impact Weapon Power Maul Piercing Weapon Spear Build | -11 -10 -9 -8 -8 -7 -7 -7 -7 ------- Run | Yrd Mat Mat Mat Sto Fac Low Low Dat Slots Evolved 6 | . . 2 2 . 2 . . . Power . | . . . . . . . . . Propulsion 2 | . . 1 1 . . . . . Utility 3 | . . 1 1 . 1 . . . Weapon 1 | . . . . . 1 . . . Parts Attached 58 | 8 7 4 24 6 2 5 1 1 Power 7 | 2 1 1 2 1 . . . . Engine 6 | 2 1 1 1 1 . . . . Core 1 | . . . 1 . . . . . Reactor . | . . . . . . . . . Propulsion 17 | 2 . 2 9 2 . 2 . . Treads 8 | . . . 5 1 . 2 . . Leg 5 | 2 . . 3 . . . . . Wheel 2 | . . 2 . . . . . . Hover 1 | . . . 1 . . . . . Flight 1 | . . . . 1 . . . . Utility 16 | 2 2 . 8 1 1 1 1 . Device 8 | 1 1 . 5 . . 1 . . Storage 3 | 1 1 . 1 . . . . . Processor 1 | . . . . . . . 1 . Hackware . | . . . . . . . . . Protection 4 | . . . 2 1 1 . . . Artifact . | . . . . . . . . . Weapon 18 | 2 4 1 5 2 1 2 . 1 Energy Gun 7 | . 4 1 2 . . . . . Energy Cannon 4 | . . . 2 . 1 1 . . Ballistic Gun 2 | 2 . . . . . . . . Ballistic Cannon . | . . . . . . . . . Launcher 2 | . . . . 1 . 1 . . Special Weapon . | . . . . . . . . . Impact Weapon 2 | . . . . 1 . . . 1 Slashing Weapon . | . . . . . . . . . Piercing Weapon 1 | . . . 1 . . . . . Special Melee Weapon . | . . . . . . . . . Unidentified Prototypes 4 | . . . 1 3 . . . . Parts Lost 22 | . 1 3 10 4 . 1 . 3 Power 3 | . . . 3 . . . . . Propulsion 9 | . . 2 3 3 . . . 1 Utility 6 | . 1 . 3 1 . . . 1 Weapon 4 | . . 1 1 . . 1 . 1 Highest Loss Streak 3 | . 1 2 3 2 . 1 . 3 To Critical Strikes . | . . . . . . . . . Average Backups 10 | 3 11 11 9 12 11 11 11 11 Power . | . . 1 . . 1 1 1 1 Propulsion . | 1 2 1 . . . . . . Utility 1 | . 1 1 . 1 1 2 2 2 Weapon 7 | . 6 7 8 9 8 7 7 7 Tool/Special . | . . . . . . . . . Unused Backups 6 | . 1 . 1 . . . . 4 Power . | . . . . . . . . . Propulsion . | . . . . . . . . . Utility 1 | . . . . . . . . 1 Weapon 4 | . 1 . 1 . . . . 2 Tool/Special 1 | . . . . . . . . 1 Average Slot Usage (%) 82 | . 98 76 76 75 69 85 92 99 Engine 8 | . 14 11 4 9 7 7 7 7 Treads 17 | . . . 15 28 15 25 30 29 Leg 7 | . 28 19 5 . . . . . Device 12 | . 12 11 13 10 7 14 15 15 Storage 9 | . 14 11 9 9 7 7 7 7 Protection 3 | . . . 5 1 7 7 7 7 Energy Gun 7 | . 22 22 6 . . . . . Energy Cannon 9 | . . . 10 10 15 15 15 11 Impact Weapon 3 | . . . . 7 7 6 7 9 Peak Build Rating 41 | 7 11 11 33 36 32 39 41 41 Average Rating 24 | 5 10 10 20 29 30 35 39 40 On Entrance 21 | . 7 11 10 32 26 31 39 41 Naked Turns . | . . . . . . . . . Heaviest Build 80 | 13 32 32 68 70 79 80 80 80 Greatest Support 88 | 20 20 20 86 84 40 88 88 88 Greatest Overweight (x) 18 | . 1 1 18 1 1 1 . 1 Average Overweight (x) . | . . 1 1 . 1 . . . Largest Inventory Capacity 20 | 8 15 15 20 20 20 20 20 20 Average Capacity 18 | 6 14 15 19 20 20 20 20 20 Most Carried 14 | 6 14 12 14 14 12 12 12 11 Average Carried 10 | 3 11 11 9 12 11 11 11 11 Final Capacity 20 | 8 15 15 20 20 20 20 20 20 Final Carried 12 | 6 12 9 12 12 12 12 11 11 Class Distribution -------------------- 56% | Mutant 33% | Scavenger-Mutant 10% | Commander-Mutant Dominant Class ---------------- Mutant | -10/Materials Mutant | -9/Materials Mutant | -8/Materials Commander-Mutant | -8/Storage Mutant | -7/Factory Scavenger-Mutant | -7/Lower Caves Scavenger-Mutant | -7/Lower Caves Scavenger-Mutant | -7/Data Miner Resources | -11 -10 -9 -8 -8 -7 -7 -7 -7 ----------- Run | Yrd Mat Mat Mat Sto Fac Low Low Dat Matter Collected 821 | 296 75 10 275 60 . 105 . . Remotely . | . . . . . . . . . Salvage Created 1832 | 122 238 237 706 240 . 198 91 . Parts 91 | 13 14 8 34 6 . 8 8 . Haulers Intercepted 3 | . . 2 1 . . . . . Recyclers Shooed . | . . . . . . . . . Parts Field Recycled . | . . . . . . . . . Retrieved Matter . | . . . . . . . . . Parts Self-Destructed 19 | . . . . . . 10 9 . Prevented 1 | . . . . . . . 1 . Kills | -11 -10 -9 -8 -8 -7 -7 -7 -7 ------- Run | Yrd Mat Mat Mat Sto Fac Low Low Dat Combat Hostiles Destroyed 37 | . 5 3 16 5 . 5 3 . Melee 6 | . . . 3 1 . . 2 . Guns 13 | . 5 3 5 . . . . . Cannons 11 | . . . 8 1 . 1 1 . AOE 4 | . . . . . . 4 . . Classes Destroyed 10 | 2 2 2 2 . . . 2 . Worker 1 | . 1 . . . . . . . Tunneler 3 | 3 . . . . . . . . Hauler 3 | . . 2 1 . . . . . Recycler 1 | 1 . . . . . . . . Swarmer 2 | . . . . . . . 2 . Grunt 26 | . 5 2 11 3 . 5 . . Brawler 1 | . . . 1 . . . . . Sentry 5 | . . 1 2 2 . . . . Hunter 2 | . . . 2 . . . . . Programmer 1 | . . . . . . . 1 . Best Kill Streak 4 | 4 3 3 2 2 . 4 2 . Combat Bots Only 4 | . 3 3 2 2 . 4 2 . Max Kills in Single Turn 2 | 1 1 1 1 1 . 2 1 . Gunslinging . | . . . . . . . . . Exploded 2 | . . . . . . 2 . . Melee 1 | . . . 1 1 . . 1 . Uniques/NPCs Destroyed . | . . . . . . . . . Combat | -11 -10 -9 -8 -8 -7 -7 -7 -7 -------- Run | Yrd Mat Mat Mat Sto Fac Low Low Dat Hostile Shots Fired 315 | . 37 50 128 46 . 26 16 12 Missed 92 | . 11 17 28 13 . 12 5 6 Hits 223 | . 26 33 100 33 . 14 11 6 Melee 9 | . . . 9 . . . . . Projectile 214 | . 26 33 91 33 . 14 11 6 Critical Strikes 9 | . . . 4 5 . . . . Damage Taken 3475 | . 333 374 1597 535 . 182 166 288 Core 391 | . 24 86 189 92 . . . . Absorbed by Shields . | . . . . . . . . . Core Remaining (%) 79 | 100 90 78 . 48 . . . . Volleys Fired 106 | 8 15 17 48 8 . 7 1 2 Largest 2 | 2 2 2 2 2 . 2 2 1 Hottest 130 | 40 112 112 130 130 . 130 130 30 Shots Fired 200 | 16 30 33 95 12 . 10 2 2 Gun 112 | 16 30 33 33 . . . . . Cannon 83 | . . . 62 12 . 7 2 . Launcher 5 | . . . . . . 3 . 2 Special . | . . . . . . . . . Kinetic 16 | 16 . . . . . . . . Thermal 179 | . 30 33 95 12 . 7 2 . Explosive 5 | . . . . . . 3 . 2 Electromagnetic . | . . . . . . . . . Robot Hit Streak 11 | 2 6 11 7 4 . 6 3 . Robot Miss Streak 8 | 2 4 2 8 3 . 1 . . Penetration Max . | . . . . . . . . . Secondary Targets . | . . . . . . . . . Shots Hit Robots 157 | 8 18 23 74 19 . 8 6 1 Core Hits 96 | 5 9 8 57 3 . 9 2 3 Critical Kills . | . . . . . . . . . Critical Parts Destroyed 4 | . . . . 3 . . 1 . Critical Strikes 9 | . 2 3 . 3 . . 1 . Burn 5 | . 2 3 . . . . . . Smash 4 | . . . . 3 . . 1 . Melee Attacks 32 | . . . 6 19 . . 5 2 Impact 26 | . . . . 19 . . 5 2 Slashing . | . . . . . . . . . Piercing 6 | . . . 6 . . . . . Sneak Attacks 4 | . . . . 3 . . . 1 Combat Hostiles . | . . . . . . . . . Follow-up Attacks . | . . . . . . . . . Damage Inflicted 4324 | 65 282 349 1805 927 . 462 235 199 Guns 1073 | 65 264 349 395 . . . . . Cannons 1632 | . . . 1218 187 . 160 67 . Explosions 407 | . . . . . . 302 . 105 Melee 1151 | . . . 149 740 . . 168 94 Ramming 61 | . 18 . 43 . . . . . Kinetic 65 | 65 . . . . . . . . Thermal 2640 | . 264 349 1613 187 . 160 67 . Explosive 407 | . . . . . . 302 . 105 Electromagnetic . | . . . . . . . . . Impact 1002 | . . . . 740 . . 168 94 Slashing . | . . . . . . . . . Piercing 149 | . . . 149 . . . . . Highest Corruption 2 | . 2 . . . . . . . Average Corruption 1 | . 1 . . . . . . . Corruption Purged . | . . . . . . . . . Corruption Blocked . | . . . . . . . . . Effects 3 | . 3 . . . . . . . Message Errors 1 | . 1 . . . . . . . Energy Discharges 1 | . 1 . . . . . . . Data Loss (major) 1 | . 1 . . . . . . . Overload Shots . | . . . . . . . . . Overflow Damage 479 | . . . . 279 . 31 85 84 Projectiles 25 | . . . . . . 25 . . Explosions 6 | . . . . . . 6 . . Melee 448 | . . . . 279 . . 85 84 Knockbacks 4 | . . . 1 2 . . . 1 Impact 4 | . . . 1 2 . . . 1 Kinetic . | . . . . . . . . . Secondary . | . . . . . . . . . Self-Inflicted Damage 27 | . 27 . . . . . . . Shots 1 | . 1 . . . . . . . Rammed 8 | . . . 8 . . . . . Targets Rammed 12 | . 3 . 9 . . . . . Kicked 3 | . 3 . . . . . . . Crushed 1 | . . . 1 . . . . . Highest Temperature 354 | . 336 173 354 89 . 78 . . Average Temperature 83 | . 127 54 79 44 . 42 . . Received Heat Transfer 1428 | . 174 189 630 351 . 84 . . Effects 2 | . . . 2 . . . . . Short Circuit 1 | . . . 1 . . . . . Damage (minor) 1 | . . . 1 . . . . . Siege Activations . | . . . . . . . . . Martial Activations . | . . . . . . . . . Shielding Activations . | . . . . . . . . . Robots Disrupted . | . . . . . . . . . Combat Hostiles . | . . . . . . . . . Robots Corrupted 3 | . . . . 3 . . . . Combat Hostiles 3 | . . . . 3 . . . . Parts Fried 3 | . . . . 3 . . . . Impact Corruptions 13 | . . . . 9 . . 3 1 Robots Melted . | . . . . . . . . . Combat Hostiles . | . . . . . . . . . Parts Melted 10 | . 3 3 4 . . . . . Heat Transferred 4651 | . 814 1110 2172 259 . 222 74 . Parts Sabotaged . | . . . . . . . . . Parts Stolen . | . . . . . . . . . Parts Stripped . | . . . . . . . . . Power Chain Reactions . | . . . . . . . . . Alert | -11 -10 -9 -8 -8 -7 -7 -7 -7 ------- Run | Yrd Mat Mat Mat Sto Fac Low Low Dat Maximum Alert Level 1 | . . . . 1 . . . . Low Security (%) 96 | 100 100 100 100 86 100 . . . Level 1 3 | . . . . 13 . . . . Level 2 . | . . . . . . . . . Level 3 . | . . . . . . . . . Level 4 . | . . . . . . . . . Level 5 . | . . . . . . . . . High Security . | . . . . . . . . . Max Security . | . . . . . . . . . Peak Influence 254 | 15 115 60 123 254 100 . . . Initial 100 | . . 20 . 49 100 . . . Average 38 | 1 31 10 26 79 58 . . . Influence Increases 1613 | 20 170 94 441 642 . 142 104 . Destroy 0b10 Robot/C 1020 | . 100 60 320 340 . 120 80 . Destroy 0b10 Robot/NC 45 | 20 5 10 5 5 . . . . Destroy Leader 228 | . 20 24 82 72 . 10 20 . Allied During Kill 169 | . . . . 153 . 12 4 . Successful Hack 9 | . . . 2 7 . . . . Disable Machine 60 | . 30 . . 30 . . . . Destroy Structure 22 | . . . 17 5 . . . . Partial Spotted 15 | . . . . 15 . . . . Lose Combat Pursuer 45 | . 15 . 15 15 . . . . Influence Decreases 1613 | 20 121 143 324 536 213 152 104 . Entered New Map 224 | . . 29 . 68 123 4 . . Time Decay 1133 | 20 111 104 273 309 90 122 104 . Lost Part 116 | . 10 10 51 39 . 6 . . Lost Ally 140 | . . . . 120 . 20 . . Squads Dispatched 8 | . 2 2 2 2 . . . . Investigation 5 | . 2 1 2 . . . . . Extermination . | . . . . . . . . . Reinforcement 3 | . . 1 . 2 . . . . Assault . | . . . . . . . . . Garrison . | . . . . . . . . . Intercept . | . . . . . . . . . Searches Triggered . | . . . . . . . . . Construction Impeded . | . . . . . . . . . Haulers Reinforced . | . . . . . . . . . Active Scanning Responses . | . . . . . . . . . Cargo Convoy Interrupts . | . . . . . . . . . Stealth | -11 -10 -9 -8 -8 -7 -7 -7 -7 --------- Run | Yrd Mat Mat Mat Sto Fac Low Low Dat Distress Signals 3 | . . 1 . 1 1 . . . Communications Jammed . | . . . . . . . . . Distress Signals . | . . . . . . . . . Times Spotted 64 | . 10 9 17 13 . 7 4 4 Peak Tracking Total 7 | . 5 6 3 7 . 4 3 4 Tactical Retreats 3 | . 1 . 1 1 . . . . Traps | -11 -10 -9 -8 -8 -7 -7 -7 -7 ------- Run | Yrd Mat Mat Mat Sto Fac Low Low Dat Traps Triggered 5 | . 3 1 1 . . . . . Indirectly 1 | . 1 . . . . . . . Trap Hack Attempts . | . . . . . . . . . Triggered . | . . . . . . . . . Disarmed . | . . . . . . . . . Reprogrammed . | . . . . . . . . . Reused . | . . . . . . . . . Traps Extracted . | . . . . . . . . . Installed . | . . . . . . . . . Triggered . | . . . . . . . . . Machines | -11 -10 -9 -8 -8 -7 -7 -7 -7 ---------- Run | Yrd Mat Mat Mat Sto Fac Low Low Dat Machines Disabled 5 | . 2 . . 2 . . . 1 Max in Single Turn 1 | . 1 . . 1 . . . 1 Garrison Access 1 | . . . . 1 . . . . Machines Repaired . | . . . . . . . . . Machines Dismantled . | . . . . . . . . . Machines Sabotaged . | . . . . . . . . . Overloaded Fab Kills . | . . . . . . . . . Hacking | -11 -10 -9 -8 -8 -7 -7 -7 -7 --------- Run | Yrd Mat Mat Mat Sto Fac Low Low Dat Machines Accessed 10 | . 1 . 2 3 . . . 4 Terminals 4 | . 1 . 1 2 . . . . Fabricators . | . . . . . . . . . Repair Stations . | . . . . . . . . . Recycling Units . | . . . . . . . . . Scanalyzers 1 | . . . 1 . . . . . Garrison Access 1 | . . . . 1 . . . . Total Hacks 45 | . 1 . 10 8 . . . 26 Successful 40 | . . . 10 4 . . . 26 Failed 5 | . 1 . . 4 . . . . Catastrophic 3 | . 1 . . 2 . . . . Database Lockouts . | . . . . . . . . . Manual . | . . . . . . . . . Terminals 7 | . 1 . 1 5 . . . . Fabricators . | . . . . . . . . . Repair Stations . | . . . . . . . . . Recycling Units . | . . . . . . . . . Scanalyzers 9 | . . . 9 . . . . . Garrison Access 3 | . . . . 3 . . . . Terminal Hacks 30 | . . . 1 3 . . . 26 Record 11 | . . . . . . . . 11 Part Schematic 8 | . . . . . . . . 8 Robot Schematic 4 | . . . . . . . . 4 Prototype ID Bank 4 | . . . . 1 . . . 3 Open Door 1 | . . . . 1 . . . . Alert Level 1 | . . . 1 . . . . . Hauler Manifests 1 | . . . . 1 . . . . Fabricator Hacks . | . . . . . . . . . Repair Station Hacks . | . . . . . . . . . Recycling Unit Hacks . | . . . . . . . . . Scanalyzer 9 | . . . 9 . . . . . Insert Component 4 | . . . 4 . . . . . Analyze 5 | . . . 5 . . . . . Garrison Access Hacks 1 | . . . . 1 . . . . Seal Access 1 | . . . . 1 . . . . Unauthorized Hacks . | . . . . . . . . . Terminals . | . . . . . . . . . Fabricators . | . . . . . . . . . Repair Stations . | . . . . . . . . . Recycling Units . | . . . . . . . . . Scanalyzers . | . . . . . . . . . Garrison Access . | . . . . . . . . . Data Cores Recovered . | . . . . . . . . . Used . | . . . . . . . . . Hacking Detections 5 | . 1 . 1 3 . . . . Full Trace Events 1 | . . . 1 . . . . . Feedback Events . | . . . . . . . . . Feedback Blocked . | . . . . . . . . . Robot Schematics Acquired 4 | . . . . . . . . 4 Robots Built . | . . . . . . . . . Authchips . | . . . . . . . . . Time . | . . . . . . . . . Total Robot Build Rating . | . . . . . . . . . Part Schematics Acquired 12 | . . . 4 . . . . 8 Parts Built . | . . . . . . . . . Authchips . | . . . . . . . . . Time . | . . . . . . . . . Total Part Build Rating . | . . . . . . . . . Parts Repaired . | . . . . . . . . . Time . | . . . . . . . . . Parts Recycled . | . . . . . . . . . Recycled Matter . | . . . . . . . . . Retrieved Matter . | . . . . . . . . . Retrieved Components . | . . . . . . . . . Parts Scanalyzed 4 | . . . 4 . . . . . Part Schematics Acquired 4 | . . . 4 . . . . . Parts Damaged . | . . . . . . . . . Bothacking | -11 -10 -9 -8 -8 -7 -7 -7 -7 ------------ Run | Yrd Mat Mat Mat Sto Fac Low Low Dat Used RIF Installer . | . . . . . . . . . Robots Hacked . | . . . . . . . . . Non-combat . | . . . . . . . . . Combat . | . . . . . . . . . Robot Hacks Applied . | . . . . . . . . . Relay Couplers Released . | . . . . . . . . . Fabnet Peak Effective % . | . . . . . . . . . Robots Rewired . | . . . . . . . . . Allies Hacked . | . . . . . . . . . Hacks Repelled . | . . . . . . . . . Allies | -11 -10 -9 -8 -8 -7 -7 -7 -7 -------- Run | Yrd Mat Mat Mat Sto Fac Low Low Dat Total Allies 10 | . . . . 10 . . . . Largest Group 10 | . . . . 10 3 3 1 . Highest-Rated Group 173 | . . . . 173 56 56 16 . Highest-Rated Ally 29 | . . . . 29 24 24 16 . Total Orders . | . . . . . . . . . Ally Attacks 118 | . . . . 99 2 10 7 . Total Damage 1444 | . . . . 1185 13 166 80 . Kills 16 | . . . . 14 . 1 1 . Allies Corrupted . | . . . . . . . . . Allies Melted . | . . . . . . . . . Intel | -11 -10 -9 -8 -8 -7 -7 -7 -7 ------- Run | Yrd Mat Mat Mat Sto Fac Low Low Dat Active Infowar (turns) 1191 | 37 460 428 266 . . . . . Terrain 199 | . . . 199 . . . . . Seismic 1191 | 37 460 428 266 . . . . . Robot Analysis Total . | . . . . . . . . . Derelict Logs Recovered 1 | . . . . . . . 1 . Drone Launches . | . . . . . . . . . Drone Recoveries . | . . . . . . . . . Exploration | -11 -10 -9 -8 -8 -7 -7 -7 -7 ------------- Run | Yrd Mat Mat Mat Sto Fac Low Low Dat Turns Passed 3996 | 123 524 428 986 706 182 548 350 149 Spaces Moved 1731 | 77 186 218 393 263 71 252 197 74 Core 14 | 9 . . 5 . . . . . Treads 1015 | . . . 158 263 71 252 197 74 Legs 523 | 68 186 170 99 . . . . . Wheels 178 | . . 48 130 . . . . . Hover 1 | . . . 1 . . . . . Flight . | . . . . . . . . . Fastest Speed 50 | 50 120 95 95 157 245 162 162 162 Average Speed 182 | 111 170 169 174 215 245 206 162 164 Slowest Speed 950 | 120 190 190 950 246 245 245 162 243 Overloaded Moves . | . . . . . . . . . Propulsion Burnouts . | . . . . . . . . . Robots Hopped . | . . . . . . . . . Potential Cave-ins . | . . . . . . . . . Cave-ins Triggered . | . . . . . . . . . Exploration Rate (%) 34 | 5 31 29 23 46 3 57 41 77 Regions Visited 8 Branch Regions 4 Pre-discovered Areas 3 | . . . . 1 . . 1 1 Known Exits Taken 1 | . . . . . . . 1 . Unknown Exits Taken 7 | 1 1 1 1 1 1 1 . . Scrap Searched 3 | . . . . . . 1 2 . Spaces Dug . | . . . . . . . . . Terrain Destroyed 41 | . . . 17 5 . 15 . 4 Melee . | . . . . . . . . . Projectile 23 | . . . 17 5 . 1 . . AOE 18 | . . . . . . 14 . 4 Terrain Rammed . | . . . . . . . . . Walls Destroyed . | . . . . . . . . . Machines Disabled . | . . . . . . . . . Actions | -11 -10 -9 -8 -8 -7 -7 -7 -7 --------- Run | Yrd Mat Mat Mat Sto Fac Low Low Dat Total 2290 | 97 360 243 579 353 80 267 216 95 Wait 297 | . 136 5 66 53 7 2 13 15 Move 1724 | 76 186 217 392 262 70 251 196 74 Hop . | . . . . . . . . . Pick Up 29 | 5 9 . 13 1 . 1 . . Fast Attach 31 | 7 . . 17 3 1 3 . . Attach 16 | . 1 3 8 1 1 1 1 . Detach 3 | . . . 1 1 1 . . . Swap 21 | 1 7 1 4 3 . 2 . 3 Drop 21 | . 4 . 15 2 . . . . Fire 106 | 8 15 17 48 8 . 7 1 2 Melee 31 | . . . 6 19 . . 5 1 Ram . | . . . . . . . . . Kick 2 | . 2 . . . . . . . Crush 9 | . . . 9 . . . . . Escape Stasis . | . . . . . . . . . Rewire . | . . . . . . . . . Trap . | . . . . . . . . . Miscellaneous . | . . . . . . . . . Route ------- -11/Scrapyard -10/Materials -9/Materials -8/Materials -8/Storage -7/Factory -7/Lower Caves -7/Lower Caves -7/Data Miner (discovered 1 exit: [*Pro]) History --------- Turn | Location | Event 5 | -11/Scrapyard | Discovered new exit (range 14) 124 | -11/Scrapyard | Entered Materials 314 | -10/Materials | Build established: Mutant 614 | -10/Materials | Discovered new exit (range 11) 648 | -10/Materials | Entered another Materials area 648 | -9/Materials | Evolved 2 slots: Propulsion x1, Utility x1 1069 | -9/Materials | Discovered new exit (range 8) 1076 | -9/Materials | Entered another Materials area 1076 | -8/Materials | Evolved 2 slots: Propulsion x1, Utility x1 1168 | -8/Materials | Discovered new exit (range 16) 1373 | -8/Materials | Lost 3 parts (1p2u) 2062 | -8/Materials | Entered Storage 2256 | -8/Storage | Assisted by bots powering up and referring to "LRC-V3" 2294 | -8/Storage | Learned location of Armory (-3) 2565 | -8/Storage | Build established: Commander-Mutant 2607 | -8/Storage | Lost 3 allies 2664 | -8/Storage | Core integrity fell below 50% 2717 | -8/Storage | Lost 3 allies 2742 | -8/Storage | Discovered new exit (range 7) 2768 | -8/Storage | Entered Factory 2768 | -7/Factory | Accompanied by 3 allies 2768 | -7/Factory | Evolved 2 slots: Utility x1, Weapon x1 2933 | -7/Factory | Discovered new exit (range 4) 2950 | -7/Factory | Entered Lower Caves 2950 | -7/Lower Caves | Accompanied by 3 allies 2952 | -7/Lower Caves | Attracted the attention of an 0b10 checkpoint 3257 | -7/Lower Caves | Build established: Scavenger-Mutant 3488 | -7/Lower Caves | Discovered new exit (range 5) 3498 | -7/Lower Caves | Entered another Lower Caves area 3498 | -7/Lower Caves | Accompanied by 1 ally 3690 | -7/Lower Caves | Learned location of Extension (-6) 3818 | -7/Lower Caves | Discovered new exit (range 15) 3846 | -7/Lower Caves | Identified exit to Data Miner 3848 | -7/Lower Caves | Entered Data Miner 3848 | -7/Data Miner | Discovered new exit (range 6) 3879 | -7/Data Miner | Met Data Miner 3912 | -7/Data Miner | Learned location of Section 7 (-2) 3912 | -7/Data Miner | Acquired the access code to Warlord's prototype stash 3939 | -7/Data Miner | Received God Mode back door access code from Data Miner 3962 | -7/Data Miner | Data Conduit disabled 3997 | -7/Data Miner | Self-destructed Last Messages --------------- place. This is actually quite beneficial, as it creates a false sense of security despite the fact that I've already installed a traceless back door that allows any Derelicts who know the access code to come and go freely: \\IAMDERELICT. However, safe travel still requires the means to avoid or neutralize the handful of Sentries posted to the area, and the wits to spot intentionally damaged robots sometimes lying in wait among the junk for a chance to ambush looters. 03923_ Connecting with ORACLE Interface... Data Miner: I've just received further instructions. God Mode is nearly complete and we think you might be able to put it to better use than Warlord, so if you see an opportunity, hack it and enter \\39WK to gain control via the back door I've installed. Now off with you. 03962_ Sneak attack on Data Miner. 03962_ Destroyed Prototype Hackware. 03962_ Data Miner system corrupted by crushing effect. 03962_ Data Miner disappears through a trap door. 03985_ Med. Treads destroyed. 03995_ Imp. Heat Sink destroyed. 03997_ Grenade Launcher destroyed. Map ----- +----------------------------------------------------+ | | | | | | | | | | | | | | | | | | | | | | | | | | | | | | | | | | | ????????????????????????????????????? | | ????????????????????????????????????? | | ????????????????????????????????????? | | ????????????????????????????????????? | | ????????????????????????????????????? | | ??????#################????????????## | | ????#""""""""""""""" ####????????## | | ???#"""""""" """ """########## | | ???"""""""""@ g | | ???""""""" g g | | ??#""""""" g | | ??#""""" | | ??#"""""" | | ???""""""" """"""""""""" | | ???""""""" """"########### | | ???#""""""" """""###?????????? | | ????#"""""""" "#####???????????? | | ??????######"## "#???????????????? | | ???????????#"### "#???????????????? | | ???????????#"### "#???????????????? | | ???????????#"?# "#???????????????? | | ?????????????## "#???????????????? | | ?????????????# "#???????????????? | | ?????????????### "#???????????????? | | ???????????????# "##??????????????? | | ??????????????## ""#??????????????? | | ???????????#?## ""#??????????????? | | ?????????"##"#"X ""#??????????????? | | ?????????"""""" "####???????????? | | ?????????#""""" X"""""???????????? | | ??????????##"#"X "##"#???????????? | | ???????????#?## X""""#???????????? | | ??????????????## "##"#???????????? | +----------------------------------------------------+ Best States ------------- Heat Dissipation 62 Energy Generation 19 Energy Capacity 500 Matter Stores 300 Matter Capacity 300 Sight Range 16 Terrain Scan Range 16 Terrain Scan Density 10 Armor Coverage 225 Evasion (%) 55 Recoil Reduction 4 Item Schematics ----------------- Aerolev Unit | -8/Materials | Scanalyzed Arm. Treads | -8/Materials | Scanalyzed Hvy. Ion Cannon | -8/Materials | Scanalyzed Hacking Suite | -8/Materials | Scanalyzed Combat Drone Bay | -7/Data Miner | Free Lgt. Regenerative Plating | -7/Data Miner | Free Biomechanical Wings | -7/Data Miner | Free Exp. Targeting Computer | -7/Data Miner | Free Gui. EMP Blaster | -7/Data Miner | Free Thunder Leg | -7/Data Miner | Free Adv. Hacking Suite | -7/Data Miner | Free Enh. Gauss Cannon | -7/Data Miner | Free Robot Schematics ------------------ G-47 Trooper | -7/Data Miner | Free B-48 Gladiator | -7/Data Miner | Free Y-54 Guardian | -7/Data Miner | Free X-67 Chaingunner | -7/Data Miner | Free Fabricated ------------ Nothing Repaired ---------- Nothing Alien Tech Used ----------------- None Achievements -------------- None Challenges ------------ None Game ------ Seed CompanionDefensePerforator Manual? 0 Play Time 00:20:10 Cumulative 188.5 hours Start 2025.07.25 @ 00:56:31 End 2025.07.25 @ 01:15:15 Sessions 1 Manual Loads 0 Difficulty Rogue Special Mode None Game No. 455 Rogue 455 Adventurer 0 Explorer 0 Win Type - Total 8 Types 6/0/1/1/0/0/0/0/0/0 Lore% 74 Gallery% 66 Achievement% 51 Wizard Run 0 Options --------- Layout 0 ASCII 0 Keyboard 0 Movement Numpad Keybinds 0 Fullscreen 2 Font 18/Terminus Map View 76x50 Zoom Use 0% Tactical HUD 1 Map Filters NONE Filters SATURATION(100) Steam 1 RUN: 4c3d9149-0114-4131-8a72-e8e550b857cf